bitfinex-derivatives/quotes_SOLF0:USTF0_20250320
["timestamp","ask_amount","ask_price","bid_price","bid_amount"]
[1742466360129,33.06,131.08,131.0,155.50917778]
[1742466360326,50.64168627,131.08,131.0,122.44917778]
[1742466360827,7.6337,131.04,131.0,122.44917778]
[1742466361028,0.04882194,131.05,131.03,0.0581264]
[1742466362327,0.04882194,131.05,131.04,32.98]
[1742466362532,0.04882194,131.05,131.04,40.6133]
[1742466362827,0.04882194,131.05,131.04,32.98]
[1742466364127,255.5281,131.12,131.04,61.17190361]
[1742466364434,3.9777,131.14,131.06,28.19190361]
[1742466364631,3.9777,131.14,131.07,32.92]
[1742466365429,0.05673632,131.12,131.09,0.04993226]
[1742466365934,0.05673632,131.12,131.09,7.68013226]
[1742466366234,0.05673632,131.12,131.09,0.04993226]
[1742466366435,32.89673632,131.12,131.09,0.04993226]
[1742466367031,40.52583632,131.12,131.09,0.04993226]
[1742466367232,32.89673632,131.12,131.09,0.04993226]
[1742466367433,7.6296,131.11,131.09,0.04993226]
[1742466367633,32.89673632,131.12,131.09,0.04993226]
[1742466368937,0.05673632,131.12,131.09,0.04993226]
[1742466369630,7.6299,131.1,131.09,0.04993226]
[1742466369829,32.76,131.1,131.03,40.3936]
[1742466370033,7.6314,131.08,131.02,40.4345]
[1742466370336,32.78,131.07,131.0,3.8215]
[1742466370534,32.78,131.06,131.0,3.8215]
[1742466370739,32.78,131.06,131.01,7.6347]
[1742466370931,0.05454749,131.04,131.02,0.04852392]
[1742466372136,283.72060361,131.11,131.02,32.72852392]
[1742466372342,32.68,131.1,131.02,32.68]
[1742466372637,7.6305,131.09,131.04,7.633]
[1742466373036,7.6305,131.09,131.02,32.68]
[1742466373341,0.05572987,131.07,131.04,7.6862124]
[1742466373736,0.05572987,131.07,131.04,0.0533124]
[1742466374138,0.05572987,131.07,131.04,7.6864124]
[1742466374541,0.05572987,131.07,131.04,0.0533124]
[1742466375942,7.68762987,131.07,131.04,0.0533124]
[1742466376138,0.05572987,131.07,131.04,0.0533124]
[1742466376541,7.6325,131.06,131.04,0.0533124]
[1742466376740,0.05572987,131.07,131.04,0.0533124]
[1742466377138,0.05572987,131.07,131.04,7.6863124]
[1742466377338,0.05572987,131.07,131.04,0.0533124]
[1742466378146,7.68752987,131.07,131.04,0.0533124]
[1742466378643,7.68742987,131.07,131.04,7.6865124]
[1742466378842,0.05572987,131.07,131.04,0.0533124]
[1742466379237,0.05572987,131.07,131.06,7.6322]
[1742466379643,0.05572987,131.07,131.04,0.0533124]
[1742466381546,0.05572987,131.07,131.06,7.6322]
[1742466382146,3.9777,131.14,131.12,7.6283]
[1742466382346,3.9243,131.15,131.09,32.38]
[1742466382746,251.84,131.19,131.11,28.19190361]
[1742466382945,7.6264,131.16,131.12,32.4]
[1742466383146,3.7987,131.2,131.13,7.6281]
[1742466383339,0.04830051,131.15,131.13,0.04844686]
[1742466383544,7.6261,131.17,131.13,0.04844686]
[1742466383737,0.05073015,131.15,131.13,0.04844686]
[1742466384947,7.6275,131.14,131.13,0.04844686]
[1742466385243,7.67793015,131.15,131.13,0.04844686]
[1742466385441,0.05073015,131.15,131.13,0.04844686]
[1742466386141,7.6275,131.14,131.13,0.04844686]
[1742466386744,0.05073015,131.15,131.07,32.34]
[1742466386945,4.0421,131.14,131.06,4.1089]
[1742466387145,32.24,131.13,131.06,4.1089]
[1742466387446,7.6308,131.09,131.05,36.2696]
[1742466387844,0.05153359,131.08,131.06,0.05691321]
[1742466389147,7.6316,131.07,131.06,0.05691321]
[1742466390049,0.05153359,131.08,131.06,0.05691321]
[1742466390353,0.05153359,131.08,131.06,60.42881682]
[1742466390541,0.05153359,131.08,131.07,7.6316]
[1742466390749,32.18,131.13,131.06,60.42881682]
[1742466391047,7.6287,131.13,131.08,7.6307]
[1742466391244,32.22,131.14,131.06,60.37190361]
[1742466391438,32.22,131.14,131.06,32.18]
[1742466391643,4.0109,131.17,131.07,28.19190361]
[1742466391849,0.05330846,131.11,131.09,0.0536935]
[1742466392046,0.05330846,131.11,131.09,32.3136935]
[1742466392350,0.04891451,131.11,131.09,32.31089125]
[1742466392749,0.04891451,131.11,131.1,7.6299]
[1742466393439,32.24,131.16,131.09,32.31089125]
[1742466394445,0.05500382,131.14,131.09,32.31089125]
[1742466394652,0.05500382,131.14,131.12,7.6283]
[1742466394848,0.05500382,131.14,131.09,32.26]
[1742466395049,0.05500382,131.14,131.12,0.05176672]
[1742466395241,0.05500382,131.14,131.13,7.6281]
[1742466396349,0.05500382,131.14,131.12,0.05176672]
[1742466397245,7.6281,131.13,131.12,0.05176672]
[1742466397450,0.05500382,131.14,131.12,0.05176672]
[1742466397847,0.05500382,131.14,131.12,7.68036672]
[1742466398054,0.05500382,131.14,131.12,0.05176672]
[1742466398948,7.6281,131.13,131.12,0.05176672]
[1742466400155,0.05500382,131.14,131.12,0.05176672]
[1742466401355,0.05500382,131.14,131.12,7.68036672]
[1742466401655,0.05500382,131.14,131.12,0.05176672]
[1742466402262,32.31500382,131.14,131.12,0.05176672]
[1742466402452,32.31500382,131.14,131.04,279.99190361]
[1742466402647,7.8312,131.13,131.04,279.99190361]
[1742466403058,32.26,131.14,131.07,28.19190361]
[1742466403558,0.04851313,131.12,131.09,7.680748]
[1742466404556,0.04851313,131.12,131.09,60.46265161]
[1742466404953,0.04851313,131.12,131.09,68.09285161]
[1742466405354,0.04851313,131.12,131.09,60.46265161]
[1742466406158,0.04851313,131.12,131.1,7.6299]
[1742466406757,0.04851313,131.12,131.09,60.46265161]
[1742466408357,0.04851313,131.12,131.11,7.6293]
[1742466410363,0.04851313,131.12,131.09,60.46265161]
[1742466410960,0.04851313,131.12,131.1,7.6293]
[1742466411367,0.04851313,131.12,131.1,7.6299]
[1742466411558,0.04851313,131.12,131.09,60.46265161]
[1742466412062,0.04851313,131.12,131.1,7.6293]
[1742466412268,0.04851313,131.12,131.09,60.46265161]
[1742466412455,7.67751313,131.12,131.09,60.46265161]
[1742466413368,0.04851313,131.12,131.09,60.46265161]
[1742466413861,7.67751313,131.12,131.09,68.09295161]
[1742466414061,7.67751313,131.12,131.09,60.46265161]
[1742466414464,7.67751313,131.12,131.09,28.24265161]
[1742466414966,0.04851313,131.12,131.09,28.24265161]
[1742466415358,0.04851313,131.12,131.11,7.6293]
[1742466417066,0.04851313,131.12,131.1,7.6298]
[1742466417369,0.04851313,131.12,131.09,0.050748]
[1742466419064,0.04851313,131.12,131.09,17.64486471]
[1742466419266,0.04851313,131.12,131.1,7.6294]
[1742466419666,0.04851313,131.12,131.1,7.6296]
[1742466420165,0.04851313,131.12,131.11,7.6293]
[1742466420358,0.04851313,131.12,131.09,17.64486471]
[1742466420764,0.04851313,131.12,131.11,7.6293]
[1742466421070,0.04851313,131.12,131.11,25.22341671]
[1742466422063,0.04851313,131.12,131.11,17.59411671]
[1742466422269,0.04851313,131.12,131.09,17.64486471]
[1742466423369,0.04851313,131.12,131.11,7.6293]
[1742466423875,0.04851313,131.12,131.09,17.64486471]
[1742466424777,0.04851313,131.12,131.11,7.6293]
[1742466426774,0.04851313,131.12,131.1,7.6296]
[1742466426975,0.04851313,131.12,131.09,17.64486471]
[1742466427374,0.04851313,131.12,131.11,7.6293]
[1742466428279,0.04851313,131.12,131.09,17.64486471]
[1742466428675,0.04851313,131.12,131.1,7.6294]
[1742466428877,0.04851313,131.12,131.09,17.64486471]
[1742466429177,0.04851313,131.12,131.1,7.6299]
[1742466429579,0.04851313,131.12,131.09,17.64486471]
[1742466429879,0.04851313,131.12,131.1,7.6296]
[1742466430383,0.04851313,131.12,131.09,17.64486471]
[1742466430882,0.04851313,131.12,131.11,7.6293]
[1742466433476,0.04851313,131.12,131.11,39.0493]
[1742466433676,31.68,131.16,131.11,39.0493]
[1742466433677,3.7651,131.17,131.14,7.6273]
[1742466433978,37.12109399,131.21,131.15,17.59411671]
[1742466434184,5.72109399,131.21,131.15,17.59411671]
[1742466434372,7.6237,131.21,131.15,17.59411671]
[1742466434779,3.8553,131.22,131.17,17.59411671]
[1742466434980,0.05366812,131.19,131.17,49.03209259]
[1742466435175,0.05366812,131.19,131.18,7.6252]
[1742466435379,29.87097764,131.23,131.18,17.59411671]
[1742466435683,29.87097764,131.23,131.22,25.21701671]
[1742466435880,12.19492874,131.23,131.22,25.21701671]
[1742466436282,79.65496398,131.24,131.23,7.6223]
[1742466436480,79.70307383,131.24,131.22,17.59411671]
[1742466437985,0.04810985,131.24,131.22,17.59411671]
[1742466438386,0.04810985,131.24,131.23,7.6223]
[1742466438590,0.04810985,131.24,131.22,17.59411671]
[1742466438983,0.04810985,131.24,131.21,0.05580116]
[1742466439488,7.6224,131.23,131.21,0.05580116]
[1742466439684,0.04810985,131.24,131.21,0.05580116]
[1742466439984,7.6229,131.22,131.21,0.05580116]
[1742466440185,0.04810985,131.24,131.21,0.05580116]
[1742466441090,7.67020985,131.24,131.21,0.05580116]
[1742466441588,0.04810985,131.24,131.21,0.05580116]
[1742466445691,0.04810985,131.24,131.21,7.67890116]
[1742466445892,0.04810985,131.24,131.21,0.05580116]
[1742466446893,0.04810985,131.24,131.21,7.67900116]
[1742466447196,0.04810985,131.24,131.21,0.05580116]
[1742466448184,7.6229,131.22,131.21,0.05580116]
[1742466449091,31.22,131.23,131.21,0.05580116]
[1742466450594,0.04810985,131.24,131.21,0.05580116]
[1742466451296,0.04810985,131.24,131.22,7.6228]
[1742466451899,0.04810985,131.24,131.23,7.6223]
[1742466452100,0.04810985,131.24,131.21,0.05580116]
[1742466452289,0.04810985,131.24,131.22,17.59411671]
[1742466452492,0.04810985,131.24,131.23,7.6223]
[1742466453100,0.04810985,131.24,131.22,17.59411671]
[1742466454900,0.04810985,131.24,131.22,25.21651671]
[1742466455405,0.04810985,131.24,131.23,7.6223]
[1742466455794,0.04810985,131.24,131.22,25.21671671]
[1742466456199,0.04810985,131.24,131.22,17.59411671]
[1742466457001,0.04810985,131.24,131.22,25.21661671]
[1742466457197,31.26810985,131.24,131.21,0.05580116]
[1742466457400,48.86222656,131.24,131.16,17.59411671]
[1742466457603,48.81411671,131.24,131.16,17.59411671]
[1742466457800,3.928,131.23,131.16,17.59411671]
[1742466458201,11.5506,131.23,131.16,17.59411671]
[1742466458395,3.928,131.23,131.16,17.59411671]
[1742466458601,7.6246,131.19,131.18,0.04929554]
[1742466458903,31.27043744,131.21,131.18,0.04929554]
[1742466459301,7.6243,131.2,131.18,0.04929554]
[1742466459599,31.27043744,131.21,131.18,0.04929554]
[1742466459801,7.6246,131.19,131.18,0.04929554]
[1742466459997,31.27043744,131.21,131.12,300.45411671]
[1742466460203,35.3369,131.2,131.13,7.6281]
[1742466460499,35.3369,131.2,131.12,48.81411671]
[1742466460697,35.3369,131.2,131.14,7.6272]
[1742466460899,35.3369,131.2,131.12,48.81411671]
[1742466461100,0.05833176,131.18,131.16,0.05543602]
[1742466462004,0.05833176,131.18,131.17,7.6258]
[1742466462505,0.05833176,131.18,131.16,0.05543602]
[1742466463812,0.05833176,131.18,131.1,48.81411671]
[1742466464118,3.8653,131.18,131.1,48.81411671]
[1742466464411,3.8653,131.18,131.11,7.6289]
[1742466464619,3.8394,131.17,131.11,7.6289]
[1742466464807,31.22,131.16,131.1,25.22371671]
[1742466465011,0.05084824,131.15,131.13,0.05611652]
[1742466465913,7.6275,131.14,131.13,0.05611652]
[1742466466109,0.05084824,131.15,131.08,17.59411671]
[1742466466310,7.6285,131.13,131.08,7.6309]
[1742466466513,31.22,131.12,131.08,7.6309]
[1742466466909,31.22,131.12,131.08,17.59411671]
[1742466467113,31.22,131.12,131.07,28.15552001]
[1742466467308,0.05370284,131.11,131.09,0.05281994]
[1742466467511,0.05370284,131.11,131.09,7.68301994]
[1742466468115,0.05370284,131.11,131.09,0.05281994]
[1742466468612,0.05370284,131.11,131.09,7.68311994]
[1742466468811,0.05370284,131.11,131.09,0.05281994]
[1742466469415,0.05370284,131.11,131.1,7.6299]
[1742466469817,0.05370284,131.11,131.09,0.05281994]
[1742466470119,0.05370284,131.11,131.09,7.68291994]
[1742466470321,0.05370284,131.11,131.09,0.05281994]
[1742466470519,0.05370284,131.11,131.1,7.6299]
[1742466471421,0.05370284,131.11,131.09,0.05281994]
[1742466474122,7.68310284,131.11,131.09,0.05281994]
[1742466474326,0.05370284,131.11,131.09,0.05281994]
[1742466474721,7.68330284,131.11,131.09,0.05281994]
[1742466475221,0.05370284,131.11,131.09,0.05281994]
[1742466475526,31.29370284,131.11,131.09,0.05281994]
[1742466476327,38.92340284,131.11,131.09,0.05281994]
[1742466476625,31.29370284,131.11,131.03,28.15552001]
[1742466476825,7.6313,131.08,131.04,7.6333]
[1742466477022,31.24,131.08,131.02,31.24]
[1742466477527,38.8715,131.08,131.04,7.633]
[1742466477818,7.68332339,131.07,131.05,0.05085653]
[1742466478023,0.05172339,131.07,131.05,0.05085653]
[1742466479018,0.05172339,131.07,131.05,7.68345653]
[1742466479220,0.05172339,131.07,131.05,0.05085653]
[1742466480427,0.05172339,131.07,131.05,7.68345653]
[1742466480929,0.05172339,131.07,131.05,0.05085653]
[1742466482324,7.6322,131.06,131.05,0.05085653]
[1742466482519,0.05172339,131.07,131.05,0.05085653]
[1742466482721,0.05172339,131.07,131.06,7.6322]
[1742466483728,0.05172339,131.07,131.05,38.92365653]
[1742466483929,0.05172339,131.07,131.05,0.05085653]
[1742466484333,0.05172339,131.07,131.06,7.6322]
[1742466486235,251.72,131.12,131.06,7.6322]
[1742466486236,251.72,131.12,131.06,31.24]
[1742466486628,251.72,131.12,131.1,7.6296]
[1742466487028,251.72,131.12,131.06,31.24]
[1742466487433,0.05614119,131.1,131.08,0.0533886]
[1742466488232,31.29614119,131.1,131.08,0.0533886]
[1742466488434,7.6304,131.09,131.08,0.0533886]
[1742466488932,31.29614119,131.1,131.08,0.0533886]
[1742466489435,7.6304,131.09,131.08,0.0533886]
[1742466489832,31.29614119,131.1,131.08,0.0533886]
[1742466490441,31.29614119,131.1,131.08,7.6840886]
[1742466490837,31.29614119,131.1,131.08,0.0533886]
[1742466491042,0.05614119,131.1,131.09,7.6304]
[1742466491444,251.8,131.17,131.08,48.8997722]
[1742466491742,283.04,131.17,131.11,17.6063836]
[1742466492043,3.7544,131.19,131.13,17.6063836]
[1742466492242,31.24,131.2,131.15,17.6063836]
[1742466492644,0.05799117,131.19,131.16,7.68147993]
[1742466493043,0.05799117,131.19,131.16,0.05557993]
[1742466493644,7.6257,131.18,131.16,0.05557993]
[1742466494239,38.8657,131.18,131.16,0.05557993]
[1742466494449,7.6258,131.17,131.16,0.05557993]
[1742466494744,31.24,131.18,131.09,48.8463836]
[1742466495243,31.24,131.18,131.09,31.24]
[1742466495743,0.05087929,131.15,131.12,0.04986618]
[1742466496645,0.05087929,131.15,131.12,59.42093839]
[1742466497042,0.05087929,131.15,131.13,7.6281]
[1742466497243,0.05087929,131.15,131.12,59.42093839]
[1742466497547,0.05087929,131.15,131.13,7.6278]
[1742466498844,251.8,131.22,131.14,28.15107221]
[1742466499048,251.72,131.27,131.16,28.15107221]
[1742466499250,31.22,131.26,131.18,28.15107221]
[1742466499449,251.72,131.27,131.19,31.22]
[1742466500146,0.05416102,131.24,131.22,0.05082956]
[1742466500343,7.6228,131.23,131.22,0.05082956]
[1742466500854,7.6223,131.23,131.22,0.05082956]
[1742466501552,0.05416102,131.24,131.22,0.05082956]
[1742466503155,7.6223,131.23,131.22,0.05082956]
[1742466503446,0.05416102,131.24,131.22,0.05082956]
[1742466504551,7.6223,131.23,131.22,0.05082956]
[1742466505152,0.05416102,131.24,131.17,38.8257]
[1742466505353,31.22,131.25,131.17,38.8257]
[1742466505654,31.22,131.25,131.19,7.6243]
[1742466505849,31.22,131.25,131.17,38.8257]
[1742466506156,31.22,131.25,131.18,7.6249]
[1742466506349,0.04881707,131.22,131.2,0.04886722]
[1742466506751,7.67211707,131.22,131.2,0.04886722]
[1742466507056,0.04881707,131.22,131.2,0.04886722]
[1742466507452,7.67201707,131.22,131.2,0.04886722]
[1742466507654,0.04881707,131.22,131.2,0.04886722]
[1742466511860,0.04881707,131.22,131.2,7.67276722]
[1742466512855,0.04881707,131.22,131.2,0.04886722]
[1742466513258,31.24881707,131.22,131.2,0.04886722]
[1742466513457,7.6235,131.21,131.2,0.04886722]
[1742466514455,7.6235,131.21,131.14,38.8705]
[1742466514456,34.99691707,131.22,131.14,7.6705]
[1742466514753,4.0165,131.21,131.13,31.2]
[1742466515151,4.0165,131.21,131.13,56.41103052]
[1742466515655,0.04841726,131.18,131.16,0.04947847]
[1742466515858,31.24841726,131.18,131.16,0.04947847]
[1742466516258,38.87401726,131.18,131.16,0.04947847]
[1742466516658,31.24841726,131.18,131.16,0.04947847]
[1742466517365,7.6258,131.17,131.16,0.04947847]
[1742466517864,31.24841726,131.18,131.16,0.04947847]
[1742466518362,7.6258,131.17,131.16,0.04947847]
[1742466518858,31.24841726,131.18,131.16,0.04947847]
[1742466520160,269.30313052,131.27,131.16,17.63260899]
[1742466520365,35.2856,131.26,131.21,17.58313052]
[1742466520565,36.91885528,131.28,131.21,17.58313052]
[1742466520963,31.2,131.28,131.21,17.58313052]
[1742466521165,31.2,131.27,131.21,17.58313052]
[1742466521464,0.05303431,131.26,131.23,0.05061278]
[1742466521656,7.67363431,131.26,131.23,0.05061278]
[1742466522259,0.05303431,131.26,131.23,0.05061278]
[1742466523265,7.6211,131.25,131.23,0.05061278]
[1742466523469,0.05303431,131.26,131.23,0.05061278]
[1742466523769,7.67373431,131.26,131.23,0.05061278]
[1742466524269,0.05303431,131.26,131.23,0.05061278]
[1742466525665,7.67363431,131.26,131.23,0.05061278]
[1742466525969,0.05303431,131.26,131.23,0.05061278]
[1742466526168,0.05303431,131.26,131.25,7.6211]
[1742466526577,31.18,131.33,131.28,7.6191]
[1742466526762,31.18,131.33,131.25,28.10046594]
[1742466527873,0.05438718,131.3,131.28,0.04972016]
[1742466528068,7.67268718,131.3,131.28,0.04972016]
[1742466528270,0.05438718,131.3,131.28,0.04972016]
[1742466528771,0.05438718,131.3,131.28,7.66872016]
[1742466529170,0.05438718,131.3,131.28,0.04972016]
[1742466530172,7.9556,131.36,131.28,28.1501861]
[1742466530374,7.9556,131.36,131.28,28.10046594]
[1742466530579,3.8206,131.38,131.31,28.10046594]
[1742466530770,3.8206,131.38,131.32,31.18]
[1742466530966,3.8206,131.38,131.31,31.18]
[1742466531172,31.92106594,131.38,131.31,31.18]
[1742466531470,0.05555675,131.36,131.33,0.05829347]
[1742466531669,7.6159,131.34,131.33,0.05829347]
[1742466532169,38.7956,131.35,131.33,0.05829347]
[1742466532370,31.18,131.35,131.33,0.05829347]
[1742466532865,7.6159,131.34,131.33,0.05829347]
[1742466533069,0.05555675,131.36,131.33,0.05829347]
[1742466533877,7.6159,131.34,131.33,0.05829347]
[1742466534077,0.05555675,131.36,131.33,0.05829347]
[1742466534266,31.21555675,131.36,131.33,0.05829347]
[1742466534667,7.6159,131.34,131.33,0.05829347]
[1742466534869,31.21555675,131.36,131.33,0.05829347]
[1742466535068,0.05555675,131.36,131.33,0.05829347]
[1742466537082,7.6159,131.34,131.33,0.05829347]
[1742466539077,7.6179,131.31,131.27,31.16]
[1742466539386,31.16,131.35,131.27,31.16]
[1742466539575,7.618,131.31,131.24,263.0966]
[1742466539770,59.26046594,131.32,131.24,4.0551]
[1742466539971,59.26046594,131.32,131.22,31.16]
[1742466540169,7.621,131.26,131.21,35.0829]
[1742466540382,31.16,131.28,131.21,35.0829]
[1742466540576,7.67237654,131.25,131.22,7.68035026]
[1742466540779,0.05127654,131.25,131.22,0.05785026]
[1742466541179,0.05127654,131.25,131.23,7.622]
[1742466541383,0.05127654,131.25,131.22,0.05785026]
[1742466541584,31.21127654,131.25,131.22,0.05785026]
[1742466541779,7.6223,131.23,131.22,0.05785026]
[1742466542579,31.21127654,131.25,131.16,3.8848]
[1742466542781,31.16,131.25,131.16,3.8848]
[1742466542974,7.6227,131.23,131.16,3.8848]
[1742466543281,31.16,131.22,131.16,3.8848]
[1742466543788,0.05250913,131.2,131.18,0.05102279]
[1742466544175,7.6246,131.19,131.18,0.05102279]
[1742466544372,31.16,131.19,131.12,4.0304]
[1742466544878,7.6256,131.18,131.14,7.6271]
[1742466545280,31.16,131.19,131.12,4.0304]
[1742466545476,0.04816529,131.17,131.12,4.0304]
[1742466545677,0.04816529,131.17,131.15,0.05082168]
[1742466545883,31.16,131.16,131.15,0.05082168]
[1742466546381,0.04816529,131.17,131.15,0.05082168]
[1742466546581,0.04816529,131.17,131.15,7.67772168]
[1742466546783,0.04816529,131.17,131.15,0.05082168]
[1742466547581,0.04816529,131.17,131.16,7.6264]
[1742466547784,0.04816529,131.17,131.15,0.05082168]
[1742466547984,0.04816529,131.17,131.15,7.67732168]
[1742466548283,0.04816529,131.17,131.15,0.05082168]
[1742466548486,0.04816529,131.17,131.16,7.6264]
[1742466549287,31.16,131.2,131.18,7.6247]
[1742466549983,31.16,131.2,131.15,31.16]
[1742466550183,31.16,131.2,131.13,31.16]
[1742466550378,7.6247,131.19,131.13,31.16]
[1742466550585,0.05733926,131.18,131.15,7.68303795]
[1742466550985,0.05733926,131.18,131.15,0.05623795]
[1742466551582,0.05733926,131.18,131.16,7.6264]
[1742466551979,0.05733926,131.18,131.15,0.05623795]
[1742466552990,0.05733926,131.18,131.17,7.6258]
[1742466558291,0.05733926,131.18,131.15,0.05623795]
[1742466559092,0.05733926,131.18,131.17,7.6258]
[1742466565300,4.1143,131.23,131.21,7.6233]
[1742466565599,3.9929,131.25,131.18,17.57590068]
[1742466565897,31.16,131.24,131.22,7.6229]
[1742466566600,31.2171184,131.24,131.22,7.67204415]
[1742466566800,31.2171184,131.24,131.22,0.04914415]
[1742466567894,0.0571184,131.24,131.22,0.04914415]
[1742466568099,31.2171184,131.24,131.22,0.04914415]
[1742466568502,0.0571184,131.24,131.22,0.04914415]
[1742466568903,0.0571184,131.24,131.23,7.6223]
[1742466570005,0.0571184,131.24,131.22,7.67184415]
[1742466570302,0.0571184,131.24,131.23,7.6223]
[1742466571998,0.0571184,131.24,131.22,7.67194415]
[1742466572194,0.0571184,131.24,131.22,0.04914415]
[1742466573203,31.2171184,131.24,131.13,28.11078848]
[1742466573398,32.17018848,131.23,131.13,31.16]
[1742466573605,32.17018848,131.23,131.16,7.6259]
[1742466573799,3.792,131.22,131.16,7.6259]
[1742466574007,3.792,131.22,131.14,282.76]
[1742466574008,31.14,131.21,131.14,282.76]
[1742466574208,4.0594,131.23,131.17,28.11078848]
[1742466574399,0.05034068,131.19,131.17,59.25078848]
[1742466574810,0.05034068,131.19,131.17,59.30637719]
[1742466575003,0.05034068,131.19,131.18,7.6252]
[1742466575208,31.14,131.25,131.17,59.30637719]
[1742466575407,38.7615,131.25,131.21,7.6232]
[1742466575609,31.14,131.25,131.21,7.6232]
[1742466576010,38.7612,131.25,131.17,59.25078848]
[1742466576507,0.04989716,131.22,131.2,7.67747715]
[1742466576698,0.04989716,131.22,131.2,0.05377715]
[1742466578899,0.04989716,131.22,131.21,7.6235]
[1742466580805,0.04989716,131.22,131.2,0.05377715]
[1742466581803,0.04989716,131.22,131.2,7.67767715]
[1742466582003,0.04989716,131.22,131.2,0.05377715]
[1742466582899,0.04989716,131.22,131.21,7.6235]
[1742466583208,0.04989716,131.22,131.2,0.05377715]
[1742466583806,0.04989716,131.22,131.21,7.6235]
[1742466585209,31.14,131.27,131.21,28.11078848]
[1742466585400,31.14,131.29,131.21,28.11078848]
[1742466586311,0.05692347,131.26,131.24,0.05192986]
[1742466586510,31.19692347,131.26,131.24,0.05192986]
[1742466588406,31.19692347,131.26,131.24,7.67332986]
[1742466589214,31.19692347,131.26,131.24,0.05192986]
[1742466589613,31.19692347,131.26,131.24,7.67322986]
[1742466589818,31.19692347,131.26,131.24,0.05192986]
[1742466591416,31.19692347,131.26,131.24,7.67342986]
[1742466591717,31.19692347,131.26,131.24,0.05192986]
[1742466592420,31.19692347,131.26,131.24,7.67332986]
[1742466593021,31.19692347,131.26,131.24,0.05192986]
[1742466595115,31.19692347,131.26,131.24,7.67362986]
[1742466595920,31.19692347,131.26,131.25,7.6211]
[1742466596518,31.19692347,131.26,131.24,7.67332986]
[1742466596715,31.19692347,131.26,131.24,0.05192986]
[1742466598419,0.05692347,131.26,131.24,0.05192986]
[1742466601421,7.6211,131.25,131.24,0.05192986]
[1742466601818,31.12,131.25,131.19,31.12]
[1742466602015,56.55389888,131.25,131.18,10.0]
[1742466602215,17.56159888,131.21,131.18,10.0]
[1742466602420,31.12,131.2,131.18,10.0]
[1742466602714,31.12,131.2,131.14,10.60292642]
[1742466602921,17.56159888,131.19,131.14,10.60292642]
[1742466603122,7.6258,131.17,131.16,0.05212591]
[1742466603422,38.7458,131.17,131.16,0.05212591]
[1742466603616,31.12,131.17,131.16,0.05212591]
[1742466603813,0.05605055,131.18,131.16,0.05212591]
[1742466604221,0.05605055,131.18,131.17,7.6258]
[1742466605019,0.05605055,131.18,131.16,7.67832591]
[1742466605215,0.05605055,131.18,131.16,0.05212591]
[1742466605818,31.17605055,131.18,131.16,0.05212591]
[1742466606117,17.56159888,131.17,131.09,21.62159888]
[1742466606319,17.56159888,131.17,131.09,4.06]
[1742466606621,17.56159888,131.17,131.13,7.6281]
[1742466607022,7.6271,131.15,131.09,21.62159888]
[1742466607220,31.12,131.15,131.14,0.05344472]
[1742466607421,31.12,131.15,131.09,4.06]
[1742466607612,7.6275,131.14,131.13,0.048108]
[1742466607818,31.12,131.15,131.06,321.54447834]
[1742466607819,0.04920846,131.13,131.06,41.83473818]
[1742466608117,31.12,131.12,131.06,41.83473818]
[1742466609022,0.0582542,131.1,131.08,0.0541642]
[1742466609224,0.0582542,131.1,131.09,7.6304]
[1742466609915,0.0582542,131.1,131.08,0.0541642]
[1742466611122,0.0582542,131.1,131.09,7.6304]
[1742466611818,0.0582542,131.1,131.08,0.0541642]
[1742466613722,0.0582542,131.1,131.09,7.6304]
[1742466613922,0.0582542,131.1,131.08,0.0541642]
[1742466615017,31.12,131.09,131.08,0.0541642]
[1742466615226,31.12,131.09,131.02,4.0118]
[1742466615425,31.12,131.09,131.0,59.26974016]
[1742466616022,38.7508,131.09,131.0,59.26974016]
[1742466616217,31.12,131.09,131.0,59.26974016]
[1742466616426,0.05643255,131.06,131.04,0.05716473]
[1742466619327,0.05643255,131.06,131.04,28.20690489]
[1742466619534,0.05643255,131.06,131.05,7.6328]
[1742466621144,0.05643255,131.06,131.04,0.05716473]
[1742466623637,4.21273255,131.06,130.99,31.14]
[1742466623839,4.1563,131.06,130.99,31.14]
[1742466624247,7.6331,131.05,131.01,7.6348]
[1742466624440,31.14,131.04,131.01,7.6348]
[1742466624946,31.19107613,131.04,131.01,0.04569415]
[1742466625448,31.19107613,131.04,131.02,7.6341]
[1742466626252,31.19107613,131.04,131.03,7.6339]
[1742466626542,31.19107613,131.04,131.01,0.04569415]
[1742466626748,31.19107613,131.04,131.02,7.6345]